bitfinex/quotes_ETHUSD_20251010
["timestamp","ask_amount","ask_price","bid_price","bid_amount"]
[1760116835915,2.4843,4100.9,4100.6,0.002]
[1760116836075,2.6101,4101.7,4100.6,0.002]
[1760116836276,0.4533,4101.4,4100.6,0.002]
[1760116836506,1.92,4101.3,4100.6,0.002]
[1760116836822,3.791,4101.2,4100.6,0.002]
[1760116836977,0.4533,4101.4,4100.6,0.002]
[1760116837179,2.43831073,4101.2,4100.6,0.002]
[1760116837421,2.43844443,4101.0,4100.6,0.002]
[1760116837715,5.822,4100.9,4100.6,0.002]
[1760116837876,0.4533,4101.4,4100.6,0.002]
[1760116838077,4.35836068,4101.2,4100.6,0.002]
[1760116838274,2.43837019,4101.1,4100.6,0.002]
[1760116838685,0.4533,4101.0,4100.6,0.002]
[1760116838906,2.031,4100.9,4100.6,0.002]
[1760116839218,2.031,4100.9,4100.6,2.68474468]
[1760116839219,3.792,4100.8,4100.6,2.68474468]
[1760116839382,3.792,4100.7,4100.6,0.24608395]
[1760116839575,3.792,4100.7,4100.6,0.002]
[1760116840204,0.4533,4101.4,4100.6,0.002]
[1760116840410,7.743,4101.3,4100.6,0.002]
[1760116840605,1.92,4101.2,4100.6,0.002]
[1760116840810,1.92,4101.9,4100.6,0.002]
[1760116841117,2.031,4101.4,4100.6,2.44063949]
[1760116841417,2.031,4101.4,4100.6,0.49397354]
[1760116841418,3.792,4101.3,4100.6,0.49397354]
[1760116841601,3.792,4101.3,4100.6,0.002]
[1760116841800,6.23026096,4101.3,4100.6,0.002]
[1760116842114,1.26717754,4103.0,4100.6,0.02638667]
[1760116842326,0.50996565,4102.7,4100.8,0.6336]
[1760116842625,2.031,4102.3,4101.8,2.43789866]
[1760116842782,3.792,4102.2,4101.8,0.24378987]
[1760116842982,3.792,4102.2,4101.5,2.4381311]
[1760116843210,3.792,4102.2,4101.3,2.43823295]
[1760116843432,3.792,4102.2,4100.6,2.6666]
[1760116843433,0.4533,4102.1,4100.6,0.002]
[1760116843583,2.43831287,4101.2,4100.6,0.002]
[1760116843779,3.792,4101.1,4100.7,14.5]
[1760116843979,3.792,4101.1,4100.7,16.19407246]
[1760116844286,3.792,4101.1,4100.7,16.31567246]
[1760116844712,1.92,4102.6,4100.8,0.02438548]
[1760116844911,0.1216,4101.7,4101.0,0.1216]
[1760116845114,0.2368,4102.9,4101.1,0.0243837]
[1760116845409,0.4533,4103.0,4101.1,0.0243837]
[1760116845410,5.824,4102.8,4101.2,0.0403]
[1760116845599,5.824,4102.8,4101.5,0.6336]
[1760116845799,5.824,4102.8,4101.9,2.43786777]
[1760116846214,0.432,4102.7,4101.0,2.5536]
[1760116846414,0.432,4102.7,4099.9,3.07676553]
[1760116846415,2.86948208,4102.6,4100.3,0.0403]
[1760116846593,0.432,4102.6,4100.6,2.44065532]
[1760116846797,2.352,4102.5,4100.7,14.5]
[1760116846994,2.43812271,4101.6,4100.8,2.4385381]
[1760116847200,3.792,4101.5,4100.8,2.43854205]
[1760116847432,3.792,4101.5,4101.0,2.43838514]
[1760116847630,3.792,4101.5,4100.9,1.93792078]
[1760116847631,0.432,4102.5,4101.5,2.43808932]
[1760116847804,5.824,4102.4,4101.6,0.02438072]
[1760116847998,5.824,4102.4,4101.1,0.0403]
[1760116848198,8.26160656,4102.4,4101.2,0.38982208]
[1760116848417,5.824,4102.3,4101.3,2.43825128]
[1760116848730,5.824,4102.2,4101.2,0.38982208]
[1760116848918,2.43781655,4102.1,4100.9,1.93792078]
[1760116849232,3.792,4102.2,4101.9,2.43788752]
[1760116849529,3.792,4102.2,4101.1,0.6336]
[1760116849730,2.43778562,4102.1,4101.4,2.43818734]
[1760116849929,0.4306,4102.1,4100.6,0.0423]
[1760116850130,2.43791298,4101.9,4101.2,2.43830968]
[1760116850307,2.4378796,4102.0,4100.7,15.31930426]
[1760116850511,3.792,4102.2,4100.8,0.02438548]
[1760116850712,2.032,4102.1,4101.0,0.6336]
[1760116850910,2.513,4102.2,4101.2,0.6336]
[1760116851233,3.792,4102.1,4100.9,1.53456897]
[1760116851533,2.032,4102.4,4100.7,15.31930426]
[1760116851534,4.2226,4102.0,4100.7,15.31930426]
[1760116851734,4.2226,4102.0,4100.7,17.75789796]
[1760116851901,2.43817665,4101.5,4100.7,15.31930426]
[1760116852107,1.92,4102.5,4100.9,2.43848911]
[1760116852108,0.4306,4102.5,4100.9,2.43848911]
[1760116852328,2.437968,4101.8,4101.1,2.43833232]
[1760116852527,3.792,4101.7,4100.7,15.31930426]
[1760116852718,2.43832706,4101.2,4100.7,15.31930426]
[1760116852920,0.4306,4101.1,4100.6,0.002]
[1760116853107,6.23044747,4101.0,4100.6,0.002]
[1760116853306,3.792,4101.0,4100.6,0.002]
[1760116853507,2.43859797,4100.8,4100.6,0.002]
[1760116853728,2.032,4100.8,4100.6,0.002]
[1760116855058,2.86920804,4100.7,4100.6,0.002]
[1760116855229,5.30296692,4100.7,4100.6,0.002]
[1760116855571,9.20596692,4100.7,4100.6,0.002]
[1760116855872,11.12596692,4100.7,4100.6,0.002]
[1760116856073,4.99226751,4100.6,4100.1,0.002]
[1760116856365,2.43890541,4100.2,4100.1,0.002]
[1760116856536,6.74366429,4100.2,4100.1,0.002]
[1760116856739,7.17426429,4100.2,4100.1,0.002]
[1760116857038,9.09426429,4100.2,4100.1,0.002]
[1760116857343,16.33626429,4100.2,4100.1,0.002]
[1760116857547,6.16007063,4100.2,4100.1,0.002]
[1760116857746,3.50702437,4100.2,4100.1,0.002]
[1760116857955,8.68735888,4100.2,4100.1,0.002]
[1760116858359,11.12626429,4100.2,4100.1,0.002]
[1760116858861,2.43914337,4099.8,4099.7,0.002]
[1760116859028,6.22575888,4099.8,4097.8,0.0463]
[1760116859230,0.64282776,4099.5,4097.5,0.0463]
[1760116859431,0.51375888,4099.4,4097.7,2.44039339]
[1760116859658,0.51375888,4099.4,4097.8,14.75329934]
[1760116859659,5.824,4099.3,4097.8,14.75329934]
[1760116859840,0.51375888,4099.2,4097.8,17.19358858]
[1760116860058,0.51375888,4099.2,4097.9,0.0463]
[1760116860236,0.51375888,4099.2,4098.1,2.4401071]
[1760116860447,2.43957518,4099.1,4098.3,2.44003314]
[1760116860759,0.64282776,4099.8,4098.5,2.43991704]
[1760116860970,1.92,4099.9,4098.7,0.6336]
[1760116860971,3.792,4099.7,4098.7,0.6336]
[1760116861168,1.28544823,4100.6,4098.4,0.24400331]
[1760116861169,0.64282776,4100.4,4099.1,1.92]
[1760116861474,0.64282776,4101.7,4100.4,1.92]
[1760116861638,0.5146344,4102.1,4101.5,2.43810641]
[1760116861832,0.5146344,4102.1,4102.0,2.4378352]
[1760116862038,4.73732295,4102.1,4100.3,0.0463]
[1760116862274,3.08048719,4102.3,4100.0,1.92]
[1760116862275,0.51472295,4102.0,4100.8,2.43850324]
[1760116862568,3.467,4101.9,4101.6,2.43806377]
[1760116862743,3.467,4101.9,4101.1,0.6336]
[1760116862744,1.435,4101.9,4101.1,0.6336]
[1760116862944,1.435,4101.9,4101.8,2.43795406]
[1760116863245,1.435,4101.9,4101.1,14.5]
[1760116863436,0.2219,4101.8,4101.1,14.5]
[1760116863637,0.2219,4101.8,4099.5,0.0463]
[1760116863638,1.92,4101.5,4099.5,0.0463]
[1760116863874,1.58797685,4101.4,4098.4,0.97750771]
[1760116864169,2.43901806,4100.1,4099.1,14.5]
[1760116864336,3.373,4100.0,4099.1,14.5]
[1760116864533,2.43908388,4099.9,4099.1,14.5]
[1760116864769,2.43425567,4099.9,4099.1,14.5]
[1760116864956,2.43425567,4099.8,4099.1,14.5]
[1760116865143,0.1216,4099.4,4099.1,14.5]
[1760116865341,3.791,4099.3,4099.1,14.5]
[1760116865537,0.1216,4099.4,4098.7,0.1216]
[1760116865761,0.1216,4099.0,4098.4,0.36560331]
[1760116865966,1.728,4098.9,4098.6,2.43985057]
[1760116866163,0.1216,4099.0,4098.6,2.43985057]
[1760116866367,5.823,4098.9,4098.6,0.14599857]
[1760116866572,3.791,4098.8,4098.6,0.1216]
[1760116866776,3.791,4098.8,4098.3,0.1216]
[1760116866975,3.791,4098.8,4098.4,14.5]
[1760116867341,0.1216,4099.0,4098.4,14.5]
[1760116867587,5.823,4098.9,4098.4,14.5]
[1760116867875,2.36,4098.8,4098.4,14.5]
[1760116868070,2.36,4098.8,4097.8,0.20126]
[1760116868071,2.7906,4098.8,4097.8,0.20126]
[1760116868284,2.36,4098.8,4098.2,2.44008733]
[1760116868484,0.4306,4099.3,4098.0,14.5]
[1760116868643,1.92,4099.1,4098.0,14.5]
[1760116868844,0.4306,4099.0,4098.0,14.5]
[1760116869046,2.43924757,4099.7,4098.0,14.5]
[1760116869047,0.4306,4099.5,4098.0,16.19403227]
[1760116869243,3.953,4099.4,4098.0,16.19403227]
[1760116869555,1.92,4099.3,4098.0,16.19403227]
[1760116869752,5.824,4099.2,4098.4,2.43993071]
[1760116869958,5.824,4099.2,4098.5,2.4399163]
[1760116870176,1.92,4099.1,4098.0,14.502]
[1760116870376,2.43967893,4098.9,4098.0,14.502]
[1760116870581,0.4306,4098.8,4098.0,0.002]
[1760116870981,3.38225235,4099.3,4098.0,2.44220526]
[1760116871287,2.43997866,4098.4,4098.0,0.002]
[1760116871593,2.44015519,4098.1,4098.0,0.002]
[1760116871745,8.26515519,4098.1,4098.0,0.002]
[1760116872096,8.69575519,4098.1,4098.0,0.002]
[1760116872293,0.4306,4098.1,4098.0,0.002]
[1760116872443,0.6336,4099.1,4098.0,0.002]
[1760116872444,0.4306,4098.6,4098.0,0.002]
[1760116872645,5.825,4098.5,4098.0,0.002]
[1760116873090,0.4306,4098.4,4098.0,0.002]
[1760116873447,5.825,4098.3,4098.0,2.44220887]
[1760116873771,0.4306,4099.0,4098.0,0.002]
[1760116874149,1.92,4098.8,4098.0,0.002]
[1760116874349,2.43979798,4098.7,4098.0,0.002]
[1760116874545,1.92,4098.8,4098.0,0.002]
[1760116874785,17.46012437,4099.8,4098.4,2.43992744]
[1760116874944,2.43972997,4098.9,4098.0,0.002]
[1760116875147,5.825,4098.8,4098.2,2.44009435]
[1760116875383,2.033,4098.7,4098.0,0.002]
[1760116875588,5.825,4098.6,4098.0,0.002]
[1760116875891,2.3506,4099.1,4098.4,2.43997657]
[1760116876215,2.43950592,4099.2,4098.0,0.002]
[1760116876216,2.033,4098.5,4098.0,0.002]
[1760116876418,5.825,4098.4,4098.0,0.002]
[1760116876622,10.0,4099.2,4098.0,0.002]
[1760116876778,1.92,4099.0,4098.1,2.44015519]
[1760116876974,2.43955531,4099.2,4098.4,2.43994053]
[1760116877185,2.43955531,4099.2,4098.1,2.44015519]
[1760116877186,6.2316797,4098.9,4098.1,2.44010368]
[1760116877390,6.2316797,4098.9,4098.0,0.002]
[1760116877391,0.1216,4098.5,4098.0,0.002]
[1760116877586,3.792,4098.4,4098.0,0.002]
[1760116877827,0.1216,4098.5,4098.0,0.002]
[1760116877978,3.792,4098.4,4098.0,0.002]
[1760116878177,2.44011318,4098.2,4098.0,0.002]
[1760116878372,2.3906,4098.3,4098.0,0.002]
[1760116878719,0.4706,4098.1,4098.0,0.002]
[1760116879012,2.91075519,4098.1,4098.0,0.002]
[1760116879228,2.91075519,4098.1,4095.3,0.0483]
[1760116879229,30.0,4098.0,4095.3,0.0483]
[1760116879374,30.0,4098.0,4095.7,2.44158507]
[1760116879375,2.44037841,4097.8,4095.7,2.44158507]
[1760116879573,4.36046226,4097.6,4096.8,2.44090678]
[1760116879834,6.5105,4097.9,4096.9,0.02440869]
[1760116879835,0.2149,4097.9,4096.9,0.02440869]
[1760116880099,3.792,4097.5,4097.4,2.44057207]
[1760116880317,3.792,4097.5,4096.9,0.02440869]
[1760116880318,6.2956,4097.5,4096.9,2.44086992]
[1760116880521,6.2956,4097.5,4096.8,14.5]
[1760116880820,6.2956,4097.5,4095.8,0.29728851]
[1760116880821,6.2956,4097.5,4096.7,2.44098638]
[1760116881015,6.2956,4097.5,4096.1,0.6336]
[1760116881200,6.2956,4097.5,4096.2,14.87086063]
[1760116881412,0.2149,4097.9,4096.2,14.87086063]
[1760116881574,3.792,4097.8,4097.6,2.44044235]
[1760116881928,6.2956,4097.7,4096.5,1.92]
[1760116882074,6.2956,4097.7,4096.7,2.44093899]
[1760116882075,3.792,4097.6,4096.7,2.44093899]
[1760116882274,0.4706,4097.7,4096.2,14.87086063]
[1760116882522,5.825,4097.6,4096.2,14.87086063]
[1760116882814,6.2956,4097.5,4096.6,2.44103812]
[1760116883020,8.73612745,4097.5,4096.7,2.44098095]
[1760116883171,8.73612745,4097.5,4096.2,14.87086063]
[1760116883172,6.2956,4097.5,4096.2,14.87086063]
[1760116883379,6.2956,4097.5,4096.8,2.44089148]
[1760116883588,6.2956,4097.5,4096.3,1.73122256]
[1760116883796,5.825,4097.4,4096.6,2.44099864]
[1760116884101,5.825,4097.3,4097.2,2.44064622]
[1760116884422,0.4706,4098.0,4097.2,2.4406912]
[1760116884625,0.2149,4098.6,4097.4,2.44057207]
[1760116884626,3.792,4097.9,4097.4,2.44057207]
[1760116884830,2.033,4099.6,4097.9,2.44027428]
[1760116885035,3.792,4099.5,4098.9,2.43967893]
[1760116885320,3.792,4099.4,4098.6,2.43985751]
[1760116885679,3.792,4099.4,4098.2,0.6336]
[1760116885884,3.792,4099.4,4098.3,1.70536]
[1760116886078,3.792,4099.4,4098.6,2.43980993]
[1760116886318,4.2626,4099.4,4098.3,1.70536]
[1760116886693,3.792,4099.4,4098.4,0.02439976]
[1760116886893,0.4706,4100.6,4098.6,0.6336]
[1760116887094,0.51160484,4101.2,4098.7,5.78469797]
[1760116887304,2.034,4101.1,4100.7,2.43859592]
[1760116887498,2.034,4101.1,4100.6,2.43864498]
[1760116887712,0.6925,4101.8,4099.9,0.6336]
[1760116887914,3.792,4101.7,4100.4,0.6336]
[1760116888083,3.792,4101.6,4101.5,2.43813239]
[1760116888287,3.792,4101.6,4099.1,0.6336]
[1760116888288,32.4381618,4101.5,4099.1,0.6336]
[1760116888500,4.2626,4101.6,4099.1,0.6336]
[1760116888501,2.43826792,4101.3,4099.1,0.6336]
[1760116888696,10.4706,4101.4,4099.1,0.6336]
[1760116888697,0.4706,4101.4,4099.3,0.6336]
[1760116888882,2.43831397,4101.2,4099.5,0.6336]
[1760116889208,0.1216,4100.7,4100.2,2.43889576]
[1760116889395,3.791,4100.6,4100.3,2.43879244]
[1760116889606,0.1216,4101.0,4100.4,2.4387829]
[1760116889806,3.791,4100.9,4100.3,2.56042332]
[1760116890007,2.033,4101.3,4100.4,0.02438786]
[1760116890216,3.791,4101.2,4100.7,0.1216]
[1760116890430,3.791,4101.1,4100.7,0.1216]
[1760116890717,3.9126,4101.1,4100.4,14.6216]
[1760116890918,2.43850453,4100.9,4100.4,14.6216]
[1760116891244,0.2149,4101.9,4100.4,14.5]
[1760116891443,2.43862562,4100.7,4100.4,14.5]
[1760116891606,3.791,4100.7,4100.4,14.5]
[1760116891952,0.1216,4100.9,4100.5,0.02438726]
[1760116892246,0.846,4101.5,4100.8,0.1216]
[1760116892418,0.846,4101.4,4100.9,2.43848522]
[1760116892617,0.1216,4101.6,4100.5,2.5536]
[1760116892821,10.0,4103.5,4100.6,3.8383]
[1760116893046,1.07199664,4104.0,4102.0,2.43782634]
[1760116893047,0.1216,4102.3,4102.0,2.43782634]
[1760116893352,3.79,4102.5,4102.1,0.02437775]
[1760116893644,2.277,4102.7,4101.5,0.02438132]
[1760116893809,0.1216,4103.0,4102.4,2.4375975]
[1760116894008,0.1216,4103.0,4102.3,0.1216]
[1760116894009,3.9116,4103.0,4102.3,0.1216]
[1760116894344,2.43730155,4102.9,4102.3,0.1216]
[1760116894544,3.9116,4103.0,4102.5,2.4375217]
[1760116894714,0.1216,4103.0,4102.3,2.55924481]
[1760116894910,3.79,4103.1,4102.8,0.1216]
[1760116895108,29.578,4102.8,4098.9,1.72585177]
[1760116895445,2.43772552,4102.2,4100.5,0.0483]
[1760116895631,5.823,4102.1,4100.6,14.5483]
[1760116895817,5.823,4102.1,4100.7,0.6336]
[1760116896245,2.43816775,4101.5,4100.1,0.0483]
[1760116896448,3.789,4101.4,4100.6,2.43861344]
[1760116896746,3.789,4101.3,4100.8,2.43854857]
[1760116896948,3.789,4101.5,4101.0,2.4383794]
[1760116897249,3.789,4101.9,4101.2,2.43831073]
[1760116897542,3.789,4101.9,4101.7,2.43795412]
[1760116897716,3.789,4101.9,4101.5,0.02438132]
[1760116897918,3.789,4101.9,4101.6,2.43807294]
[1760116898119,2.43766818,4102.3,4101.4,2.43818254]
[1760116898420,3.789,4102.6,4101.5,0.02438132]
[1760116898746,3.789,4102.6,4102.4,2.43756288]
[1760116898951,3.789,4102.6,4102.2,0.02437716]
[1760116899116,3.789,4102.6,4101.8,2.43795278]
[1760116899420,0.2149,4103.9,4101.8,2.43795278]
[1760116899421,2.032,4103.4,4102.0,0.6336]
[1760116899743,3.789,4103.3,4103.0,2.43719159]
[1760116899961,3.789,4103.3,4103.1,2.43717088]
[1760116900109,3.789,4103.3,4102.4,15.1336]
[1760116900309,3.789,4103.3,4102.4,14.5]
[1760116901155,6.22607544,4103.3,4102.4,16.93754873]
[1760116901450,3.789,4103.3,4102.4,14.5]
[1760116901617,3.789,4103.3,4102.5,2.43753429]
[1760116901618,6.22607309,4103.3,4102.5,2.43753429]
[1760116901817,3.789,4103.3,4102.4,14.5]
[1760116902146,3.789,4103.3,4102.7,2.43739231]
[1760116902449,3.789,4103.3,4102.4,14.5]
[1760116902816,2.4371899,4104.8,4102.4,14.5]
[1760116902817,2.032,4104.0,4102.6,0.6336]
[1760116903014,3.788,4103.9,4102.8,2.43735985]
[1760116903236,3.788,4103.9,4103.6,2.43686228]
[1760116903435,3.788,4103.9,4103.6,2.43684442]
[1760116903750,3.788,4103.9,4103.7,14.5]
[1760116905131,2.43676592,4103.8,4103.7,14.5]
[1760116905333,2.43698537,4103.5,4103.0,0.1216]
[1760116905532,3.787,4103.4,4103.0,0.1216]
[1760116905731,3.787,4103.4,4103.1,14.5]
[1760116905930,0.4716,4104.8,4103.2,0.6336]
[1760116906119,0.4716,4104.8,4103.4,2.43700209]
[1760116906120,0.1216,4104.0,4103.4,2.43700209]
[1760116906339,0.932,4104.0,4103.9,2.43670654]
[1760116906583,0.932,4104.0,4103.8,2.43676298]
[1760116906740,0.932,4104.0,4103.7,0.1216]
[1760116907165,0.1216,4103.9,4103.2,0.1216]
[1760116907340,0.1216,4103.9,4103.3,2.43706285]
[1760116907746,0.1216,4103.9,4103.2,0.1216]
[1760116908342,0.1216,4103.9,4103.3,0.02437062]
[1760116908538,0.932,4104.0,4103.3,0.60445425]
[1760116908785,0.1226,4104.7,4103.9,0.1216]
[1760116908954,0.1226,4104.7,4104.4,2.43635512]
[1760116909274,0.1226,4104.7,4103.9,0.1216]
[1760116909873,0.1226,4104.7,4104.2,2.43648778]
[1760116910250,0.1226,4104.7,4104.2,2.43648171]
[1760116910439,0.1226,4104.7,4104.4,2.43635263]
[1760116910640,0.1226,4104.7,4104.1,2.43658436]
[1760116910858,0.1226,4104.7,4104.2,14.5]
[1760116911242,0.1226,4104.7,4104.3,2.4364595]
[1760116911438,0.4278,4104.6,4102.7,0.0483]
[1760116911642,0.4278,4104.6,4103.8,2.43675842]
[1760116911643,2.8641406,4104.6,4103.8,2.43675842]
[1760116911876,2.8641406,4104.6,4103.3,0.6336]
[1760116911877,0.4278,4104.6,4103.9,16.93670597]
[1760116912061,0.001,4104.7,4103.9,14.5]
[1760116912461,0.001,4104.7,4104.6,2.43629099]
[1760116914573,0.001,4104.7,4104.6,2.50895389]
[1760116914884,0.001,4104.7,4104.6,3.00348613]
[1760116915086,0.001,4104.7,4104.6,17.50348613]
[1760116915386,0.001,4104.7,4104.6,17.47912323]
[1760116915587,0.001,4104.7,4104.6,14.5]
[1760116916567,0.001,4104.7,4104.6,16.93629099]
[1760116917168,0.001,4104.7,4103.3,0.0483]
[1760116917494,0.001,4104.7,4103.6,0.0483]
[1760116917648,0.001,4104.7,4104.6,2.43629099]
[1760116918054,0.001,4104.7,4104.6,2.48459099]
[1760116918459,0.001,4104.7,4104.6,2.43629099]
[1760116919101,0.001,4104.7,4104.2,3.070113]
[1760116919390,0.001,4104.7,4104.6,14.5]
[1760116919593,0.001,4104.7,4104.6,16.93629099]
[1760116920018,0.001,4104.7,4104.6,14.5]
[1760116920166,0.001,4104.7,4103.8,1.92]
[1760116920505,0.001,4104.7,4104.3,0.6336]
[1760116920791,2.031,4107.3,4105.5,3.06935691]
[1760116920953,0.003,4107.8,4105.9,0.6336]
[1760116921320,0.4278,4108.4,4105.4,16.97788965]
[1760116921321,0.51202149,4108.2,4106.2,0.6336]
[1760116921455,4.6368,4108.4,4107.3,0.6336]
[1760116921456,4.209,4108.4,4107.3,0.6336]
[1760116921656,4.209,4108.4,4107.4,14.5]
[1760116921989,4.209,4108.4,4107.9,2.43432089]
[1760116922291,3.783,4108.9,4107.3,3.783]
[1760116922617,3.783,4108.9,4107.6,0.6336]
[1760116922780,0.001,4108.2,4107.9,2.43433384]
[1760116922981,0.001,4108.2,4108.1,3.06781533]
[1760116923181,0.001,4108.2,4107.6,0.0463]
[1760116923418,0.001,4108.2,4107.1,1.8946]
[1760116923583,0.001,4108.2,4107.1,2.43475589]
[1760116923584,2.43424752,4108.1,4107.1,2.43475589]
[1760116923781,2.4343693,4107.9,4106.4,0.6336]
[1760116924090,0.4278,4107.8,4107.2,14.5]
[1760116924292,1.92,4107.6,4105.9,3.782]
[1760116924495,1.92,4107.7,4106.2,2.43529717]
[1760116924691,1.92,4107.7,4106.4,2.43522306]
[1760116924892,5.813,4108.1,4107.1,2.43478546]
[1760116925094,5.813,4108.1,4106.5,1.92]
[1760116925298,0.4278,4108.0,4106.7,2.43502542]
[1760116925499,5.813,4108.1,4106.5,2.69263]
[1760116925685,2.43445284,4107.7,4106.8,14.5]
[1760116925888,2.43451163,4107.6,4106.8,14.5]
[1760116926089,2.65940329,4107.8,4106.8,14.5]
[1760116926293,0.4278,4107.5,4105.1,2.43593678]
[1760116926610,2.43513762,4106.6,4105.2,0.29147824]
[1760116926814,3.782,4106.7,4105.7,14.5]
[1760116927011,3.685,4106.7,4105.9,2.43551961]
[1760116927191,3.685,4106.7,4105.7,14.5]
[1760116927390,1.92,4106.5,4104.1,0.0463]
[1760116927707,2.43583386,4105.4,4104.4,2.43639075]
[1760116927912,5.701,4105.6,4104.8,14.5]
[1760116928086,2.43588146,4105.3,4104.8,14.5]
[1760116928295,5.701,4105.6,4104.8,14.5]
[1760116928492,5.701,4105.6,4103.4,3.781]
[1760116928688,5.701,4105.6,4103.8,0.0463]
[1760116928886,5.811,4105.5,4104.2,2.43651567]
[1760116929094,2.43588535,4105.3,4104.4,2.43636283]
[1760116929296,8.24676224,4105.5,4103.8,0.0463]
[1760116929297,5.811,4105.5,4103.8,0.0463]
[1760116929513,8.24678694,4105.5,4104.4,2.43640011]
[1760116929817,8.24678694,4105.5,4103.8,0.0463]
[1760116929818,2.43587163,4105.4,4104.5,14.5]
[1760116930139,11.92,4106.3,4105.6,2.43569705]
[1760116930140,1.92,4106.3,4105.6,2.43569705]
[1760116930420,1.92,4106.3,4104.6,0.6336]
[1760116930421,5.701,4106.2,4104.6,0.6336]
[1760116930581,5.701,4106.2,4104.8,0.6336]
[1760116930780,3.781,4106.2,4105.0,0.6336]
[1760116931013,3.781,4106.2,4105.6,2.43569758]
[1760116931321,3.781,4106.2,4105.5,2.43570084]
[1760116931479,3.9026,4106.2,4105.5,0.1216]
[1760116931678,3.9026,4106.2,4105.6,14.5]
[1760116931879,0.1216,4106.6,4105.9,0.1216]
[1760116932079,1.08209664,4107.8,4105.9,0.1216]
[1760116932080,4.46455809,4107.6,4106.0,0.6336]
[1760116932320,1.574,4107.5,4106.0,0.6336]
[1760116932628,1.6956,4107.5,4107.1,2.43478873]
[1760116932826,1.6956,4107.5,4106.8,0.1216]
[1760116932827,2.1234,4107.5,4106.8,0.1216]
[1760116933004,0.1216,4107.2,4106.5,0.1216]
[1760116933196,0.1216,4107.2,4107.0,2.43486047]
[1760116933395,1.6956,4107.5,4107.0,2.43486047]
[1760116933615,1.6956,4107.5,4106.8,2.5565621]
[1760116933825,2.43473952,4107.3,4106.2,2.4353339]
[1760116934025,0.1216,4106.9,4106.3,0.1216]
[1760116934524,0.1216,4106.9,4103.8,0.11969469]
[1760116934525,2.43493718,4106.9,4105.0,0.6336]
[1760116934829,0.1216,4106.7,4106.0,2.55704945]
[1760116935009,0.1216,4106.7,4106.0,0.1216]
[1760116935440,0.1216,4106.7,4106.5,2.43511497]
[1760116935739,5.811,4106.8,4106.4,2.43521039]
[1760116935940,5.811,4106.8,4106.5,0.02435163]
[1760116936142,1.29562776,4107.8,4106.5,0.1216]
[1760116936143,0.1216,4107.2,4106.5,0.1216]
[1760116936306,2.03,4107.4,4107.0,2.43485316]
[1760116936507,2.03,4107.4,4105.7,0.0463]
[1760116936736,1.92,4107.1,4104.2,0.0463]
[1760116936904,2.43576794,4105.5,4104.3,2.43646906]
[1760116937243,1.92,4106.4,4104.3,2.43646906]
[1760116937244,3.781,4105.4,4104.3,2.43646906]
[1760116937439,3.781,4105.3,4104.7,2.436188]
[1760116937642,3.781,4105.3,4104.2,0.29460036]
[1760116937842,3.781,4105.3,4104.7,2.43618544]
[1760116938640,3.781,4105.3,4105.1,2.43598931]
[1760116938842,0.64282776,4106.2,4104.2,0.29460036]
[1760116938843,3.78,4106.0,4104.5,1.92]
[1760116939027,3.78,4106.0,4105.7,2.43560008]
[1760116939226,3.78,4106.0,4105.6,2.43569158]
[1760116939428,0.4729,4106.4,4105.0,0.6336]
[1760116939631,2.90812616,4106.4,4105.1,2.43599425]
[1760116939931,2.43541459,4106.1,4105.3,2.43582253]
[1760116940147,3.781,4106.0,4105.3,2.43582253]
[1760116940369,2.43562411,4105.8,4105.0,0.6336]
[1760116940523,6.21646769,4106.0,4105.6,0.002]
[1760116940524,3.781,4106.0,4105.6,0.002]
[1760116940860,2.43557893,4105.8,4105.6,0.002]
[1760116941060,2.43563825,4105.7,4105.6,0.002]
[1760116941264,4.82853825,4105.7,4105.6,0.002]
[1760116941462,5.34102185,4105.7,4105.6,0.002]
[1760116941965,4.35563825,4105.7,4105.6,0.002]
[1760116942132,8.13563825,4105.7,4105.6,0.002]
[1760116942328,9.12112363,4105.7,4105.6,0.002]
[1760116942527,8.60853825,4105.7,4105.6,0.002]
[1760116942756,5.7,4105.7,4105.6,0.002]
[1760116942959,3.78,4105.7,4105.6,2.43769758]
[1760116943156,3.78,4105.7,4105.6,0.002]
[1760116943329,2.03,4105.9,4105.6,0.002]
[1760116943528,2.03,4105.9,4105.6,2.43768091]
[1760116943771,3.78,4106.1,4105.6,2.43768091]
[1760116943772,3.78,4106.1,4105.6,0.002]
[1760116943929,2.43563825,4105.7,4105.6,0.002]
[1760116944454,2.90850835,4105.8,4105.6,0.002]
[1760116944650,6.21541685,4106.1,4105.6,0.002]
[1760116944827,3.78,4106.1,4105.6,0.002]
[1760116945032,2.3929,4106.0,4105.6,0.002]
[1760116945335,2.43563825,4105.7,4105.6,0.002]
[1760116946269,0.1216,4105.8,4105.6,0.002]
[1760116946650,2.55718509,4105.8,4105.6,0.002]
[1760116946828,2.43563825,4105.7,4105.6,0.002]
[1760116947030,3.78,4105.7,4105.6,0.002]
[1760116947786,0.85709664,4107.1,4105.6,0.002]
[1760116947787,0.1216,4106.9,4106.3,2.43524087]
[1760116947975,30.0,4106.7,4105.6,0.002]
[1760116948268,0.1216,4106.1,4105.6,0.002]
[1760116948430,6.2154603,4106.0,4105.6,0.002]
[1760116948630,3.78,4106.0,4105.6,0.002]
[1760116948962,1.92,4105.9,4105.6,0.002]